bitfinex/quotes_BTCUSD_20250803
["timestamp","ask_amount","ask_price","bid_price","bid_amount"]
[1754186892844,0.48648964,113570.0,113550.0,0.03352]
[1754186893051,0.50027617,113570.0,113550.0,0.03352]
[1754186894196,0.1893083,113570.0,113550.0,0.03352]
[1754186894403,0.48648964,113570.0,113550.0,0.03352]
[1754186895461,0.50732853,113570.0,113550.0,0.03352]
[1754186895863,0.51936706,113570.0,113550.0,0.03352]
[1754186896071,0.05848066,113570.0,113550.0,0.03352]
[1754186896279,0.50704853,113570.0,113550.0,0.03352]
[1754186897350,0.52083487,113570.0,113550.0,0.03352]
[1754186897795,0.209867,113570.0,113550.0,0.03352]
[1754186898210,0.52083487,113570.0,113550.0,0.03352]
[1754186898416,0.209867,113570.0,113550.0,0.03352]
[1754186898891,0.54182157,113570.0,113550.0,0.03352]
[1754186899432,0.52083487,113570.0,113550.0,0.03352]
[1754186899662,0.52067487,113570.0,113550.0,0.03352]
[1754186900126,0.209707,113570.0,113550.0,0.03352]
[1754186900328,0.52067487,113570.0,113550.0,0.03352]
[1754186901339,0.209707,113570.0,113550.0,0.03352]
[1754186901560,0.3749761,113570.0,113550.0,0.03352]
[1754186901814,0.55818241,113570.0,113550.0,0.03352]
[1754186904075,0.31096787,113560.0,113540.0,0.34589384]
[1754186904296,0.31096787,113550.0,113540.0,0.00014316]
[1754186904737,0.44828787,113550.0,113540.0,0.00014316]
[1754186904972,0.45655934,113550.0,113540.0,0.00014316]
[1754186905480,0.48304634,113550.0,113540.0,0.00114316]
[1754186906412,0.47477487,113550.0,113540.0,0.00114316]
[1754186907918,0.47477487,113550.0,113540.0,0.00014316]
[1754186908775,0.48856349,113550.0,113540.0,0.00014316]
[1754186909684,0.55474001,113550.0,113540.0,0.00014316]
[1754186909906,0.55486001,113550.0,113540.0,0.00014316]
[1754186910124,5.89486001,113550.0,113540.0,0.00014316]
[1754186910792,5.90312092,113550.0,113540.0,0.00014316]
[1754186912319,5.82315578,113550.0,113540.0,0.00014316]
[1754186912543,5.82415578,113550.0,113540.0,0.00014316]
[1754186912747,0.82415578,113550.0,113540.0,0.00014316]
[1754186912956,0.82315578,113550.0,113540.0,0.00014316]
[1754186913188,5.82315578,113550.0,113540.0,0.00014316]
[1754186913571,5.90473243,113550.0,113540.0,0.00014316]
[1754186914006,5.76741243,113550.0,113540.0,0.00014316]
[1754186914230,5.90441243,113550.0,113540.0,0.00014316]
[1754186915536,5.67857487,113550.0,113540.0,0.00014316]
[1754186915745,5.81545487,113550.0,113540.0,0.03119316]
[1754186915975,5.81545487,113550.0,113540.0,0.03333316]
[1754186916610,5.81445487,113550.0,113540.0,0.03333316]
[1754186916825,5.81545487,113550.0,113540.0,0.03333316]
[1754186917080,5.76729243,113550.0,113540.0,0.03333316]
[1754186917282,5.90421243,113550.0,113540.0,0.03333316]
[1754186919220,5.76729243,113550.0,113540.0,0.03333316]
[1754186919706,5.90413243,113550.0,113540.0,0.03333316]
[1754186919927,5.91788094,113550.0,113540.0,0.03333316]
[1754186920353,5.60691307,113550.0,113540.0,0.03333316]
[1754186920566,5.91788094,113550.0,113540.0,0.03333316]
[1754186921005,5.78108094,113550.0,113540.0,0.03333316]
[1754186921452,5.91784094,113550.0,113540.0,0.03333316]
[1754186921888,5.78108094,113550.0,113540.0,0.03333316]
[1754186922316,5.91780094,113550.0,113540.0,0.03333316]
[1754186922756,5.78108094,113550.0,113540.0,0.03333316]
[1754186922973,5.91780094,113550.0,113540.0,0.03333316]
[1754186923627,5.82896338,113550.0,113540.0,0.03333316]
[1754186923848,5.82892338,113550.0,113540.0,0.03333316]
[1754186927832,5.69224338,113550.0,113540.0,0.03333316]
[1754186928050,5.51787551,113550.0,113540.0,0.03333316]
[1754186928260,5.69224338,113550.0,113540.0,0.03333316]
[1754186928468,5.91764094,113550.0,113540.0,0.03333316]
[1754186928886,5.60667307,113550.0,113540.0,0.03333316]
[1754186929095,5.91764094,113550.0,113540.0,0.03333316]
[1754186929305,0.91764094,113550.0,113540.0,0.03333316]
[1754186929524,5.91764094,113550.0,113540.0,0.03333316]
[1754186932822,5.60667307,113550.0,113540.0,0.03333316]
[1754186933026,5.91764094,113550.0,113540.0,0.03333316]
[1754186933223,5.78108094,113550.0,113540.0,0.03333316]
[1754186933467,5.91748094,113550.0,113540.0,0.03333316]
[1754186940260,0.91748094,113550.0,113540.0,0.03333316]
[1754186940455,5.91748094,113550.0,113540.0,0.03333316]
[1754186940868,5.60651307,113550.0,113540.0,0.03333316]
[1754186941045,0.82864338,113550.0,113540.0,0.03333316]
[1754186942372,0.51743551,113550.0,113540.0,0.03333316]
[1754186942571,0.35224338,113550.0,113540.0,0.03333316]
[1754186942984,0.04127551,113550.0,113540.0,0.03333316]
[1754186943210,0.48836338,113550.0,113540.0,0.03333316]
[1754186944418,0.04127551,113550.0,113540.0,0.03333316]
[1754186944594,0.17739551,113550.0,113540.0,0.03333316]
[1754186944765,0.04127551,113550.0,113540.0,0.03333316]
[1754186945608,0.04027551,113550.0,113540.0,0.03333316]
[1754186945810,0.04027551,113550.0,113540.0,0.03433316]
[1754186946588,0.04027551,113550.0,113540.0,0.14041502]
[1754186959912,0.35124338,113550.0,113540.0,0.00114316]
[1754186960146,0.48712338,113550.0,113540.0,0.00114316]
[1754186960617,0.48712338,113550.0,113540.0,0.02948316]
[1754186961929,0.27408017,113550.0,113540.0,0.02948316]
[1754186962127,0.30056717,113550.0,113540.0,0.02948316]
[1754186963922,0.47333487,113550.0,113540.0,0.02948316]
[1754186964718,0.162367,113550.0,113540.0,0.02948316]
[1754186964936,0.48712304,113550.0,113540.0,0.02948316]
[1754186965358,0.17615517,113550.0,113540.0,0.02948316]
[1754186965560,0.48712304,113550.0,113540.0,0.02948316]
[1754186971402,0.48712304,113550.0,113540.0,0.07948316]
[1754186974834,0.52606238,113550.0,113540.0,0.07948316]
[1754186975714,0.52606238,113550.0,113540.0,0.08251316]
[1754186977858,0.92857583,113550.0,113540.0,0.07948316]
[1754186978066,0.57866862,113550.0,113540.0,0.07948316]
[1754186978457,0.52606238,113550.0,113540.0,0.07948316]
[1754186978884,0.52606238,113550.0,113540.0,0.08251316]
[1754186980349,0.87596959,113550.0,113540.0,0.08251316]
[1754186981636,0.52606238,113550.0,113540.0,0.08251316]
[1754186984216,0.87596959,113550.0,113540.0,0.08251316]
[1754186984397,0.96356655,113550.0,113540.0,0.08251316]
[1754186985237,0.61365934,113550.0,113540.0,0.08251316]
[1754186986215,0.96356655,113550.0,113540.0,0.08251316]
[1754186988618,0.87596959,113550.0,113540.0,0.08251316]
[1754186989954,0.52606238,113550.0,113540.0,0.08251316]
[1754186991259,0.87596959,113550.0,113540.0,0.08251316]
[1754186992489,0.52606238,113550.0,113540.0,0.08251316]
[1754186993993,0.19536488,113550.0,113540.0,0.08251316]
[1754186994216,0.70915329,113550.0,113540.0,0.08251316]
[1754186995085,0.84467329,113550.0,113540.0,0.08251316]
[1754186995342,0.34467329,113550.0,113540.0,0.08251316]
[1754186995548,0.64930841,113550.0,113540.0,0.15525514]
[1754186995749,0.48542721,113550.0,113540.0,0.15525514]
[1754186996204,0.34990721,113550.0,113540.0,0.15525514]
[1754186998659,0.36369559,113550.0,113540.0,0.15525514]
[1754187000355,0.01378838,113550.0,113540.0,0.15525514]
[1754187000574,0.86369559,113550.0,113540.0,0.15525514]
[1754187000785,5.7136028,113550.0,113540.0,0.08253316]
[1754187001004,5.36369559,113550.0,113540.0,0.08253316]
[1754187002550,0.36369559,113550.0,113540.0,0.08253316]
[1754187002761,5.70369559,113550.0,113540.0,0.08253316]
[1754187005070,5.83921559,113550.0,113540.0,0.08253316]
[1754187006692,5.48930838,113550.0,113540.0,0.08253316]
[1754187006896,5.83921559,113550.0,113540.0,0.08253316]
[1754187008336,5.91426477,113550.0,113540.0,0.08253316]
[1754187008740,5.82542721,113550.0,113540.0,0.08253316]
[1754187011064,5.70369582,113550.0,113540.0,0.08253316]
[1754187015243,5.70369582,113550.0,113540.0,0.08458316]
[1754187015445,0.70369582,113550.0,113540.0,0.08458316]
[1754187016286,0.68990721,113550.0,113540.0,0.08458316]
[1754187019368,0.70369554,113550.0,113540.0,0.08458316]
[1754187030105,0.36369554,113550.0,113540.0,0.08458316]
[1754187036001,0.01378833,113550.0,113540.0,0.08458316]
[1754187036210,0.36369554,113550.0,113540.0,0.08458316]
[1754187039601,0.36369554,113550.0,113540.0,0.08253316]
[1754187041737,0.39018254,113550.0,113540.0,0.08253316]
[1754187042408,0.04027533,113550.0,113540.0,0.08253316]
[1754187042624,0.39018254,113550.0,113540.0,0.08463316]
[1754187044797,0.04027533,113550.0,113540.0,0.08463316]
[1754187045041,0.39018254,113550.0,113540.0,0.08463316]
[1754187046587,0.04027533,113550.0,113540.0,0.08463316]
[1754187046794,0.39018254,113550.0,113540.0,0.08463316]
[1754187047067,0.04027533,113550.0,113540.0,0.08463316]
[1754187047282,0.39018254,113550.0,113540.0,0.08463316]
[1754187048310,0.44274879,113550.0,113540.0,0.08463316]
[1754187049357,0.09284158,113550.0,113540.0,0.08463316]
[1754187049567,0.39018254,113550.0,113540.0,0.08463316]
[1754187054362,0.04027533,113550.0,113540.0,0.08463316]
[1754187054579,0.39018254,113550.0,113540.0,0.08463316]
[1754187055464,0.04027533,113550.0,113540.0,0.08463316]
[1754187055672,0.39018254,113550.0,113540.0,0.08463316]
[1754187059941,0.04027533,113550.0,113540.0,0.08463316]
[1754187060150,0.39018254,113550.0,113540.0,0.08463316]
[1754187062300,0.01378833,113550.0,113540.0,0.61133421]
[1754187064871,0.8755311,113570.0,113540.0,0.61133421]
[1754187065001,0.88379896,113570.0,113550.0,0.48530721]
[1754187065216,0.72191396,113570.0,113560.0,0.03337]
[1754187065419,0.7401301,113570.0,113560.0,0.03337]
[1754187066066,0.7441301,113570.0,113560.0,0.03337]
[1754187066277,0.7421301,113570.0,113560.0,0.03337]
[1754187066487,0.82896766,113570.0,113560.0,0.03337]
[1754187066707,0.83096766,113570.0,113560.0,0.03337]
[1754187067472,0.7421301,113570.0,113560.0,0.03337]
[1754187067880,0.05422289,113570.0,113560.0,0.03337]
[1754187068199,0.04152497,113570.0,113560.0,0.03337]
[1754187068354,0.03752497,113570.0,113560.0,0.03337]
[1754187068765,0.38743218,113570.0,113560.0,0.03337]
[1754187068968,0.38843218,113570.0,113560.0,0.03337]
[1754187069187,0.38943218,113570.0,113560.0,0.03337]
[1754187069773,0.38843218,113570.0,113560.0,0.03337]
[1754187070241,0.38743218,113570.0,113560.0,0.03337]
[1754187070448,0.38743218,113570.0,113560.0,0.03437]
[1754187070660,0.03752497,113570.0,113560.0,0.03437]
[1754187071772,0.38743218,113570.0,113560.0,0.03437]
[1754187074234,0.03752497,113570.0,113560.0,0.03437]
[1754187074459,0.38743218,113570.0,113560.0,0.03437]
[1754187074891,0.3736461,113570.0,113560.0,0.03437]
[1754187077892,0.38743164,113570.0,113560.0,0.03437]
[1754187079156,0.03752443,113570.0,113560.0,0.08633772]
[1754187079372,0.03752443,113570.0,113560.0,0.03437]
[1754187080832,0.03752443,113570.0,113560.0,0.47291005]
[1754187082181,0.03752443,113570.0,113560.0,0.12300284]
[1754187082818,0.03752443,113570.0,113560.0,0.47291005]
[1754187083897,0.03752443,113570.0,113560.0,0.12300284]
[1754187084659,0.03752443,113570.0,113560.0,0.55119008]
[1754187085144,0.03752443,113570.0,113560.0,0.20128287]
[1754187085590,0.03752443,113570.0,113560.0,0.14045186]
[1754187085800,0.03752443,113570.0,113560.0,0.49256054]
[1754187086011,0.03752443,113570.0,113560.0,0.49035907]
[1754187092548,0.03752443,113570.0,113560.0,0.14045186]
[1754187092751,0.03752443,113570.0,113560.0,0.49256054]
[1754187092976,0.03752443,113570.0,113560.0,0.49035907]
[1754187093414,0.03752443,113570.0,113560.0,0.57919663]
[1754187093809,0.02373889,113570.0,113560.0,0.57919663]
[1754187094353,0.02373889,113570.0,113560.0,0.49035907]
[1754187097898,0.02373889,113570.0,113560.0,0.14045186]
[1754187098153,0.02373889,113570.0,113560.0,0.49256054]
[1754187098389,0.03752361,113570.0,113560.0,0.49035907]
[1754187101722,0.01668472,113570.0,113560.0,0.49035907]
[1754187101932,0.01668472,113570.0,113560.0,0.57919663]
[1754187103762,0.0029,113570.0,113560.0,0.48935907]
[1754187103975,0.0029,113570.0,113560.0,0.14145186]
[1754187104176,0.0029,113570.0,113560.0,0.49356054]
[1754187104446,0.0029,113570.0,113560.0,0.76105907]
[1754187105182,0.0029,113570.0,113560.0,0.85289663]
[1754187106901,0.0029,113570.0,113560.0,0.50298942]
[1754187107112,0.0029,113570.0,113560.0,0.76405907]
[1754187108084,0.01668326,113570.0,113560.0,0.76405907]
[1754187112306,0.01668326,113570.0,113560.0,0.91497826]
[1754187112529,0.0170302,113590.0,113570.0,0.01744902]
[1754187112749,0.03081271,113590.0,113580.0,0.99850033]
[1754187112970,0.03081271,113590.0,113580.0,1.1146868]
[1754187113200,0.03081271,113590.0,113580.0,1.1411568]
[1754187114071,0.0308604,113590.0,113580.0,1.1411568]
[1754187114272,0.0308604,113590.0,113580.0,0.3706304]
[1754187114483,0.0308604,113590.0,113580.0,0.63170005]
[1754187114643,0.0308604,113590.0,113580.0,0.98160726]
[1754187115049,0.0308604,113590.0,113580.0,0.63170005]
[1754187116089,0.0308604,113590.0,113580.0,0.98760726]
[1754187117182,0.0308604,113590.0,113580.0,0.28779284]
[1754187117586,0.0308604,113590.0,113580.0,1.02116926]
[1754187118000,0.0308604,113590.0,113580.0,0.98760726]
[1754187118219,0.23071599,113610.0,113590.0,0.01744902]
[1754187118416,0.23076367,113610.0,113600.0,0.22375284]
[1754187118616,0.23552367,113610.0,113600.0,0.22375284]
[1754187119205,0.00480768,113610.0,113600.0,0.22375284]
[1754187119437,0.00480768,113610.0,113600.0,0.31253475]
[1754187119641,0.00202768,113610.0,113600.0,0.66344196]
[1754187119869,0.00202768,113610.0,113600.0,0.31353475]
[1754187120274,0.00202768,113610.0,113600.0,0.25145284]
[1754187120887,0.01580798,113610.0,113600.0,0.25145284]
[1754187121114,0.0455257,113610.0,113600.0,0.25145284]
[1754187121289,0.01580798,113610.0,113600.0,0.25145284]
[1754187121655,0.36571519,113610.0,113600.0,0.25145284]
[1754187121858,0.01580798,113610.0,113600.0,0.25145284]
[1754187122293,0.36571519,113610.0,113600.0,0.31623557]
[1754187122512,0.36571519,113610.0,113600.0,0.25145284]
[1754187122719,0.01580798,113610.0,113600.0,0.25145284]
[1754187123389,0.36571519,113610.0,113600.0,0.25145284]
[1754187125343,0.04216918,113610.0,113600.0,0.25145284]
[1754187127747,0.04216918,113610.0,113600.0,0.25446284]
[1754187127930,0.04216918,113610.0,113600.0,0.25644284]
[1754187128134,0.04216918,113610.0,113600.0,0.25145284]
[1754187128768,0.04216918,113610.0,113600.0,0.25644284]
[1754187130012,0.04216918,113610.0,113600.0,0.60635005]
[1754187130437,0.04216918,113610.0,113600.0,0.67133078]
[1754187130647,0.04216918,113610.0,113600.0,0.60635005]
[1754187130896,0.04216918,113610.0,113600.0,0.25644284]
[1754187131720,0.04216918,113610.0,113600.0,0.25145284]
[1754187131945,0.39207639,113610.0,113600.0,0.25141284]
[1754187133044,0.04216918,113610.0,113600.0,0.25141284]
[1754187133268,0.39207639,113610.0,113600.0,0.25141284]
[1754187135991,0.04216918,113610.0,113600.0,0.25141284]
[1754187136377,0.39207639,113610.0,113600.0,0.25442284]
[1754187136577,0.39207639,113610.0,113600.0,0.25141284]
[1754187136854,0.7447536,113610.0,113600.0,0.001]
[1754187137073,0.7447536,113610.0,113600.0,0.13604]
[1754187137494,0.04493918,113610.0,113600.0,0.13604]
[1754187137707,0.38106609,113610.0,113600.0,0.16274]
[1754187139421,0.03115888,113610.0,113600.0,0.16274]
[1754187139653,0.38106609,113610.0,113600.0,0.16174]
[1754187140337,0.02838888,113610.0,113600.0,0.16174]
[1754187140578,0.39207633,113610.0,113600.0,0.16174]
[1754187141508,0.04216912,113610.0,113600.0,0.16174]
[1754187141719,0.04216912,113610.0,113600.0,0.21841581]
[1754187141931,0.39009633,113610.0,113600.0,0.21841581]
[1754187142169,0.39009633,113610.0,113600.0,0.16673]
[1754187143650,0.04018912,113610.0,113600.0,0.16673]
[1754187143905,0.39208633,113610.0,113600.0,0.16673]
[1754187145067,0.04018912,113610.0,113600.0,0.27281186]
[1754187145331,0.39009633,113610.0,113600.0,0.27281186]
[1754187145580,0.39208633,113610.0,113600.0,0.27281186]
[1754187148271,0.39208633,113610.0,113600.0,0.26980186]
[1754187148487,0.17354272,113610.0,113600.0,0.26980186]
[1754187148729,0.18732301,113610.0,113600.0,0.27284186]
[1754187148932,0.17354272,113610.0,113600.0,0.27284186]
[1754187149742,0.17480272,113610.0,113600.0,0.25037284]
[1754187149999,0.18858303,113610.0,113600.0,0.25037284]
[1754187150208,0.18858303,113610.0,113600.0,0.25341284]
[1754187150429,0.18858303,113610.0,113600.0,0.25537284]
[1754187151094,0.53849024,113610.0,113600.0,0.13504]
[1754187151302,0.5650139,113610.0,113600.0,0.13504]
[1754187151510,0.39147118,113610.0,113600.0,0.13504]
[1754187151706,0.45125946,113610.0,113600.0,0.16145]
[1754187153000,0.39147118,113610.0,113600.0,0.16145]
[1754187156144,0.74137839,113610.0,113600.0,0.13504]
[1754187156365,0.74137839,113610.0,113590.0,0.02945]
[1754187156366,0.39147118,113610.0,113590.0,0.02945]
[1754187156576,0.39147118,113610.0,113600.0,0.135]
[1754187156577,5.73226118,113610.0,113600.0,0.135]
[1754187156789,5.0,113600.0,113590.0,0.13496]
[1754187156995,0.00126,113600.0,113590.0,0.13496]
[1754187157873,0.37764421,113600.0,113590.0,0.13496]
[1754187158912,0.37764421,113600.0,113590.0,0.16137]
[1754187159117,0.48026372,113600.0,113590.0,0.13496]
[1754187159781,0.39142616,113600.0,113590.0,0.13596]
[1754187160000,0.39142616,113600.0,113590.0,0.16137]
[1754187161649,0.39142616,113600.0,113590.0,0.16637]
[1754187161650,0.04151895,113600.0,113590.0,0.16637]
[1754187161882,0.39016616,113600.0,113590.0,0.16637]
[1754187164488,0.37638421,113600.0,113590.0,0.16637]
[1754187164702,0.37638421,113600.0,113590.0,0.03141]
[1754187164888,0.37638421,113600.0,113590.0,0.16637]
[1754187165113,0.37638421,113600.0,113590.0,0.03141]
[1754187165367,0.37638421,113600.0,113590.0,0.16637]
[1754187167525,0.026477,113600.0,113590.0,0.33115078]
[1754187167762,0.71643087,113610.0,113590.0,0.27245186]
[1754187167983,0.71643087,113610.0,113600.0,0.02945]
[1754187168192,0.71769087,113610.0,113600.0,0.02945]
[1754187168614,0.71769087,113610.0,113600.0,0.02641]
[1754187168813,1.08209889,113610.0,113600.0,0.13496]
[1754187169309,1.08137889,113610.0,113600.0,0.13496]
[1754187169711,1.10785389,113610.0,113600.0,0.13496]
[1754187170180,0.40803947,113610.0,113600.0,0.16137]
[1754187170634,0.40803947,113610.0,113600.0,0.16637]
[1754187170635,0.75668668,113610.0,113600.0,0.16637]
[1754187171308,0.40677947,113610.0,113600.0,0.16637]
[1754187171542,0.75668668,113610.0,113600.0,0.16637]
[1754187172846,0.40677947,113610.0,113600.0,0.16637]
[1754187173832,0.8045219,113610.0,113600.0,0.16637]
[1754187175810,0.49386409,113610.0,113600.0,0.16637]
[1754187176079,0.40803947,113610.0,113600.0,0.16637]
[1754187176294,0.71869728,113610.0,113600.0,0.16637]
[1754187177195,0.40803947,113610.0,113600.0,0.16637]
[1754187178029,0.70491647,113610.0,113600.0,0.16637]
[1754187178294,0.39299866,113610.0,113600.0,0.16637]
[1754187178558,0.70365647,113610.0,113600.0,0.16637]
[1754187178778,0.39299866,113610.0,113600.0,0.16637]
[1754187179227,0.39299866,113610.0,113600.0,0.183007]
[1754187179453,0.02652366,113610.0,113600.0,0.20045602]
[1754187179676,0.02652366,113610.0,113600.0,0.183007]
[1754187179900,0.00560892,113620.0,113600.0,0.16637]
[1754187180120,0.00560892,113620.0,113610.0,0.0319]
[1754187180337,0.31626673,113620.0,113610.0,0.03404]
[1754187180685,0.31752673,113620.0,113600.0,0.0319]
[1754187180779,0.66657714,113620.0,113610.0,0.13768]
[1754187181011,0.85255491,113620.0,113600.0,0.16638]
[1754187181476,0.31065781,113610.0,113600.0,0.17062]
[1754187181720,0.00126,113610.0,113600.0,0.17062]
[1754187182175,0.31191781,113610.0,113600.0,0.17276]
[1754187182396,0.31191781,113610.0,113600.0,0.17176]
[1754187183234,0.31191781,113610.0,113600.0,0.17476]
[1754187183442,0.34126,113610.0,113600.0,0.17176]
[1754187183653,0.65191781,113610.0,113600.0,0.17176]
[1754187186334,0.65191781,113610.0,113600.0,0.16962]
[1754187186546,0.65191781,113610.0,113600.0,0.16638]
[1754187187455,0.66569835,113610.0,113600.0,0.16638]
[1754187187713,0.66569835,113610.0,113600.0,0.16962]
[1754187188203,0.66569835,113610.0,113590.0,0.0319]
[1754187188474,0.65065781,113600.0,113590.0,0.16638]
[1754187188706,0.65191781,113600.0,113590.0,0.16962]
[1754187188939,0.67839381,113600.0,113590.0,0.16962]
[1754187190099,0.67839381,113600.0,113590.0,0.17062]
[1754187190732,0.67839381,113600.0,113590.0,0.17276]
[1754187191361,0.367736,113600.0,113590.0,0.17276]
[1754187191568,0.67839381,113600.0,113590.0,0.17276]
[1754187192256,0.33839381,113600.0,113590.0,0.17276]
[1754187194022,0.027736,113600.0,113590.0,0.17276]
[1754187194247,0.33839381,113600.0,113590.0,0.17276]
[1754187198659,0.35217523,113600.0,113590.0,0.17276]
[1754187198869,0.04025742,113600.0,113590.0,0.17276]
[1754187199069,0.01378142,113600.0,113590.0,0.17276]
[1754187202991,0.01378142,113600.0,113590.0,0.03504]
[1754187203138,0.32443923,113600.0,113590.0,0.17368]
[1754187203368,0.35091423,113600.0,113590.0,0.17368]
[1754187203752,0.04025642,113600.0,113590.0,0.17368]
[1754187206148,0.01378142,113600.0,113590.0,0.33527161]
[1754187207040,0.01378142,113600.0,113590.0,0.27976186]
[1754187210773,0.01378142,113600.0,113590.0,0.59041967]
[1754187211231,0.01378142,113600.0,113590.0,0.27976186]
[1754187217969,0.05787059,113620.0,113590.0,0.59041967]
[1754187218186,0.05787059,113620.0,113600.0,0.09083354]
[1754187218402,0.05787059,113620.0,113610.0,0.14126]
[1754187218615,0.05787059,113620.0,113610.0,0.17155]
[1754187221105,0.03139959,113620.0,113610.0,0.26018284]
[1754187221332,0.03139959,113620.0,113610.0,0.26118284]
[1754187223290,0.03139959,113620.0,113610.0,0.26018284]
[1754187223473,0.03139959,113620.0,113610.0,0.26118284]
[1754187223943,0.03139959,113620.0,113610.0,0.26418284]
[1754187226866,0.53265959,113620.0,113610.0,0.17018]
[1754187227088,0.3433174,113620.0,113610.0,0.14312]
[1754187227325,0.3433174,113620.0,113610.0,0.17086]
[1754187227552,0.3433174,113620.0,113610.0,0.17409]
[1754187227788,0.03139959,113620.0,113610.0,0.27831186]
[1754187228017,0.03139959,113620.0,113610.0,0.26186284]
[1754187228242,0.3433174,113620.0,113610.0,0.16786]
[1754187229123,0.03265959,113620.0,113610.0,0.16786]
[1754187229335,0.3433174,113620.0,113610.0,0.16778]
[1754187231314,0.3697874,113620.0,113610.0,0.02806]
[1754187231808,0.3959474,113620.0,113590.0,0.02067902]
[1754187232031,0.31065781,113600.0,113590.0,0.10931186]
[1754187232258,0.33602781,113610.0,113590.0,0.23360284]
[1754187232467,0.00126,113600.0,113590.0,0.14497]
[1754187233204,0.31065781,113610.0,113590.0,0.14493]
[1754187233427,0.31065781,113610.0,113600.0,0.13956]
[1754187233643,5.0,113610.0,113600.0,0.14493]
[1754187233853,5.0,113610.0,113600.0,0.17199]
[1754187234940,5.01285916,113610.0,113600.0,0.17199]
[1754187235147,0.01285916,113610.0,113600.0,0.17199]
[1754187235352,0.01285916,113610.0,113600.0,0.17195]
[1754187235825,0.01385916,113610.0,113600.0,0.17195]
[1754187236029,0.001,113610.0,113600.0,0.26058284]
[1754187237105,0.05786959,113620.0,113600.0,0.26058284]
[1754187237333,0.05786959,113620.0,113610.0,0.03029]
[1754187237547,0.05912959,113620.0,113610.0,0.03029]
[1754187238005,0.45724714,113620.0,113610.0,0.03029]
[1754187238863,0.3971574,113620.0,113600.0,0.22344284]
[1754187239005,0.3971574,113620.0,113600.0,0.22244284]
[1754187239234,0.3981574,113620.0,113600.0,0.22244284]
[1754187239813,0.08749959,113620.0,113600.0,0.22244284]
[1754187240024,0.3971574,113620.0,113600.0,0.22244284]
[1754187240234,0.3981574,113620.0,113600.0,0.22244284]
[1754187240636,0.48621714,113620.0,113600.0,0.22244284]
[1754187240837,0.48621714,113620.0,113600.0,0.25218284]
[1754187241041,0.02737,113610.0,113600.0,0.25218284]
[1754187241249,0.02953,113610.0,113600.0,0.25218284]
[1754187241657,0.02953,113610.0,113600.0,0.13381]
[1754187241910,0.34018781,113610.0,113600.0,0.13381]
[1754187242166,0.36985981,113610.0,113600.0,0.13381]
[1754187242337,0.36665981,113610.0,113600.0,0.13381]
[1754187242540,0.15167196,113610.0,113600.0,0.13481]
[1754187242779,0.15232196,113610.0,113600.0,0.16138]
[1754187243937,0.33712981,113610.0,113600.0,0.16662]
[1754187244363,0.026472,113610.0,113600.0,0.16662]
[1754187244816,0.026472,113610.0,113600.0,0.56591065]
[1754187245060,0.026472,113610.0,113600.0,0.25525284]
[1754187245541,0.03139959,113620.0,113600.0,0.32596482]
[1754187245785,0.05786859,113620.0,113610.0,0.08863284]
[1754187245983,0.05786859,113620.0,113610.0,0.11837284]
[1754187246187,0.05786859,113620.0,113610.0,0.12044284]
[1754187247048,0.12972123,113620.0,113610.0,0.12044284]
[1754187247690,0.44235904,113620.0,113610.0,0.11520284]
[1754187247911,0.44235904,113620.0,113600.0,0.16355]
[1754187247912,0.46720904,113620.0,113600.0,0.16355]
[1754187249509,0.3963564,113620.0,113600.0,0.16355]
[1754187249987,0.08569859,113620.0,113610.0,0.02657]
[1754187250239,0.06084859,113620.0,113610.0,0.02657]
[1754187250463,0.06084859,113620.0,113610.0,0.02974]
[1754187250911,0.06084859,113620.0,113610.0,0.00317]
[1754187251117,0.08721859,113620.0,113600.0,0.13698]
[1754187251327,0.08821859,113620.0,113600.0,0.13698]
[1754187251539,0.06174959,113620.0,113600.0,0.13698]
[1754187251753,0.06074959,113620.0,113600.0,0.13698]
[1754187251969,0.026471,113610.0,113600.0,0.13698]
[1754187252182,0.026471,113610.0,113600.0,0.13588]
[1754187252656,0.055821,113610.0,113600.0,0.13588]
[1754187252872,0.055821,113610.0,113600.0,0.16562]
[1754187255191,0.16995959,113620.0,113600.0,0.16562]
[1754187255428,0.5344584,113620.0,113600.0,0.16562]
[1754187255672,0.22380059,113620.0,113600.0,0.16562]
[1754187255938,0.02737,113610.0,113600.0,0.16562]
[1754187256177,0.28028665,113620.0,113600.0,0.16562]
[1754187256397,0.22372059,113620.0,113610.0,0.00317]
[1754187256629,0.22570059,113620.0,113610.0,0.00317]
[1754187257734,0.22670059,113620.0,113610.0,0.00317]
[1754187258867,0.22670059,113620.0,113600.0,0.12755]
[1754187259078,0.08822059,113620.0,113600.0,0.12755]
[1754187259290,0.22658059,113620.0,113600.0,0.12755]
[1754187260160,0.19719059,113620.0,113610.0,0.02864]
[1754187260367,0.05787059,113620.0,113610.0,0.02864]
[1754187260789,0.05887059,113620.0,113610.0,0.03181]
[1754187261871,0.05887059,113620.0,113610.0,0.03281]
[1754187263783,0.05887059,113620.0,113610.0,0.03881]
[1754187264013,0.08840059,113620.0,113610.0,0.03881]
[1754187265765,0.08840059,113620.0,113610.0,0.03181]
[1754187265973,0.08840059,113620.0,113610.0,0.03071]
[1754187267655,0.09160059,113620.0,113610.0,0.03071]
[1754187268086,0.05887059,113620.0,113610.0,0.03071]
[1754187268286,0.05887059,113620.0,113610.0,0.03388]
[1754187268749,0.08850059,113620.0,113610.0,0.03071]
[1754187269628,0.09166059,113620.0,113610.0,0.03071]
[1754187270948,0.05887059,113620.0,113610.0,0.12248284]
[1754187271161,0.03239959,113620.0,113610.0,0.12248284]
[1754187274009,0.03451959,113620.0,113610.0,0.11934284]
[1754187274221,0.06202959,113620.0,113610.0,0.11934284]
[1754187277036,0.03451959,113620.0,113610.0,0.11934284]
[1754187277274,0.03451959,113620.0,113610.0,0.12248284]
[1754187277917,0.03239959,113620.0,113610.0,0.11948284]
[1754187281325,0.05990959,113620.0,113610.0,0.11948284]
[1754187282880,5.0,113630.0,113610.0,0.46885231]
[1754187283069,0.34936947,113630.0,113610.0,0.55768987]
[1754187283682,0.38544931,113630.0,113610.0,0.55768987]
[1754187284106,0.03607984,113630.0,113610.0,0.55068987]
[1754187284335,0.38544931,113630.0,113610.0,0.55068987]
[1754187284537,0.35036947,113630.0,113610.0,0.55068987]
[1754187285049,0.37787947,113630.0,113610.0,0.45985231]
[1754187285969,0.37787947,113630.0,113610.0,0.11048284]
[1754187287558,0.37787947,113630.0,113620.0,0.02731]
[1754187287783,0.37999947,113630.0,113620.0,0.02731]
[1754187288527,0.37999947,113630.0,113610.0,0.12408284]
[1754187288743,0.41515135,113630.0,113610.0,0.12408284]
[1754187288941,0.41515135,113630.0,113610.0,0.11908284]
[1754187289385,0.41515135,113630.0,113620.0,0.005]
[1754187290046,0.41415135,113630.0,113620.0,0.005]